[Event "11th LCC Super Blitz 2019"]
[Site "London"]
[Date "2019.12.08"]
[Round "7.11"]
[White "Iyengar, Ilya"]
[Black "Pham, Catherine"]
[Result "1-0"]
[ECO "C02"]
[WhiteElo "1984"]
[BlackElo "1280"]
[Annotator "NA"]
[PlyCount "88"]
[EventDate "2019.12.08"]
[EventType "swiss"]
[EventCountry "ENG"]
[SourceTitle "playchess.com"]
[Source "ChessBase"]
[SourceQuality "1"]
[TimeControl "180+2"]

1. e4 {[%emt 0:00:00]} e6 {[%emt 0:00:00]} 2. d4 {[%emt 0:00:01]} d5 {[%emt 0:00:00]} 3. e5 {[%emt 0:00:01]} c5 {[%emt 0:00:00]} 4. Nf3 {[%emt 0:00:02]} Qb6 {[%emt 0:00:00]} 5. Nc3 {[%emt 0:00:05]} Nc6 {[%emt 0:00:01]} 6. Na4 {[%emt 0:00:10]} Qa5+ {[%emt 0:00:22]} 7. c3 {[%emt 0:00:22]} c4 {[%emt 0:00:25]} 8. b4 {[%emt 0:00:09]} cxb3 {[%emt 0:00:31]} 9. Qxb3 {[%emt 0:00:01]} Qc7 {[%emt 0:00:07]} 10. Bd2 {[%emt 0:00:17]} Bd7 {[%emt 0:00:02]} 11. Nb2 {[%emt 0:00:01]} Na5 {[%emt 0:00:06]} 12. Qc2 {[%emt 0:00:04]} Ne7 {[%emt 0:00:22]} 13. Bd3 {[%emt 0:00:06]} Ng6 {[%emt 0:00:02]} 14. h4 {[%emt 0:00:06]} Nc4 {[%emt 0:00:23]} 15. Nxc4 {[%emt 0:00:06]} dxc4 {[%emt 0:00:03]} 16. Be4 {[%emt 0:00:02]} Bc6 {[%emt 0:00:02]} 17. h5 {[%emt 0:00:01]} Bxe4 {[%emt 0:00:14]} 18. Qxe4 {[%emt 0:00:02]} Ne7 {[%emt 0:00:01]} 19. O-O {[%emt 0:00:06]} Qc6 {[%emt 0:00:07]} 20. Ng5 {[%emt 0:00:30]} Qxe4 {[%emt 0:00:04]} 21. Nxe4 {[%emt 0:00:01]} Nd5 {[%emt 0:00:03]} 22. Rab1 {[%emt 0:00:04]} b6 {[%emt 0:00:01]} 23. f4 {[%emt 0:00:08]} g6 {[%emt 0:00:04]} 24. hxg6 {[%emt 0:00:12]} hxg6 {[%emt 0:00:00]} 25. Kf2 {[%emt 0:00:05]} Rh4 {[%emt 0:00:08]} 26. Rh1 {[%emt 0:00:03]} Be7 {[%emt 0:00:14]} 27. Rxh4 {[%emt 0:00:02]} Bxh4+ {[%emt 0:00:03]} 28. g3 {[%emt 0:00:01]} Be7 {[%emt 0:00:02]} 29. Rh1 {[%emt 0:00:02]} Kd7 {[%emt 0:00:11]} 30. Ke2 {[%emt 0:00:10]} Rf8 {[%emt 0:00:03]} 31. g4 {[%emt 0:00:03]} f5 {[%emt 0:00:02]} 32. exf6 {[%emt 0:00:02]} Nxf6 {[%emt 0:00:02]} 33. Nxf6+ {[%emt 0:00:01]} Bxf6 {[%emt 0:00:01]} 34. Rh7+ {[%emt 0:00:01]} Kd6 {[%emt 0:00:02]} 35. g5 {[%emt 0:00:05]} Be7 {[%emt 0:00:03]} 36. Rg7 {[%emt 0:00:04]} a5 {[%emt 0:00:10]} 37. Rxg6 {[%emt 0:00:02]} b5 {[%emt 0:00:01]} 38. a3 {[%emt 0:00:09]} Kd7 {[%emt 0:00:03]} 39. Bc1 {[%emt 0:00:02]} b4 {[%emt 0:00:05]} 40. axb4 {[%emt 0:00:01]} axb4 {[%emt 0:00:00]} 41. cxb4 Bxb4 {[%emt 0:00:01]} 42. Bd2 {[%emt 0:00:01]} c3 {[%emt 0:00:03]} 43. Bc1 {[%emt 0:00:02]} Rc8 {[%emt 0:00:06]} 44. Kd3 {[%emt 0:00:01]} c2 {[%emt 0:00:01]} 1-0

[Event "11th LCC Super Blitz 2019"]
[Site "London"]
[Date "2019.12.08"]
[Round "7.12"]
[White "Nunn, Petra"]
[Black "Fisher, Neal"]
[Result "1-0"]
[ECO "C41"]
[WhiteElo "1908"]
[BlackElo "1522"]
[Annotator "NA"]
[PlyCount "79"]
[EventDate "2019.12.08"]
[EventType "swiss"]
[EventCountry "ENG"]
[SourceTitle "playchess.com"]
[Source "ChessBase"]
[SourceQuality "1"]
[TimeControl "180+2"]

1. e4 {[%emt 0:00:00]} d6 {[%emt 0:00:00]} 2. Nf3 {[%emt 0:00:00]} Nf6 {[%emt 0:00:00]} 3. Nc3 {[%emt 0:00:01]} Nbd7 {[%emt 0:00:01]} 4. d4 {[%emt 0:00:01]} e5 {[%emt 0:00:01]} 5. d5 {[%emt 0:00:02]} Be7 {[%emt 0:00:02]} 6. Bg5 {[%emt 0:00:02]} h6 {[%emt 0:00:01]} 7. Bh4 {[%emt 0:00:02]} c6 {[%emt 0:00:02]} 8. Bc4 {[%emt 0:00:04]} Qc7 {[%emt 0:00:01]} 9. Bb3 {[%emt 0:00:03]} Nf8 {[%emt 0:00:09]} 10. a4 {[%emt 0:00:10]} a5 {[%emt 0:00:02]} 11. O-O {[%emt 0:00:04]} Bg4 {[%emt 0:00:04]} 12. Qd3 {[%emt 0:00:03]} g5 {[%emt 0:00:03]} 13. Bg3 {[%emt 0:00:02]} Ng6 {[%emt 0:00:02]} 14. h3 {[%emt 0:00:04]} Bd7 {[%emt 0:00:01]} 15. Nd2 {[%emt 0:00:13]} g4 {[%emt 0:00:13]} 16. hxg4 {[%emt 0:00:12]} Nxg4 {[%emt 0:00:01]} 17. dxc6 {[%emt 0:00:08]} bxc6 {[%emt 0:00:01]} 18. Ne2 {[%emt 0:00:18]} Bg5 {[%emt 0:00:06]} 19. Nf3 {[%emt 0:00:10]} Nf4 {[%emt 0:00:12]} 20. Bxf4 {[%emt 0:00:04]} Bxf4 {[%emt 0:00:09]} 21. Nxf4 {[%emt 0:00:04]} exf4 {[%emt 0:00:04]} 22. Nd4 {[%emt 0:00:11]} h5 {[%emt 0:00:12]} 23. Rae1 {[%emt 0:00:11]} h4 {[%emt 0:00:05]} 24. Qc4 {[%emt 0:00:02]} Rh7 {[%emt 0:00:25]} 25. Nf5 {[%emt 0:00:28]} Be6 {[%emt 0:00:24]} 26. Qd3 {[%emt 0:00:16]} Kd7 {[%emt 0:00:49]} 27. e5 {[%emt 0:00:11]} d5 {[%emt 0:00:05]} 28. Nd6 {[%emt 0:00:04]} Rah8 {[%emt 0:00:03]} 29. Qf3 {[%emt 0:00:12]} h3 {[%emt 0:00:04]} 30. gxh3 {[%emt 0:00:16]} Rxh3 {[%emt 0:00:03]} 31. Qxf4 {[%emt 0:00:07]} Rh1+ {[%emt 0:00:03]} 32. Kg2 {[%emt 0:00:01]} R8h2+ {[%emt 0:00:01]} 33. Kf3 {[%emt 0:00:02]} Rh3+ {[%emt 0:00:01]} 34. Ke2 {[%emt 0:00:01]} R1h2 {[%emt 0:00:14]} 35. Kd1 {[%emt 0:00:04]} Rh4 {[%emt 0:00:13]} 36. Nxf7 {[%emt 0:00:04]} Nxf2+ {[%emt 0:00:02]} 37. Qxf2 {[%emt 0:00:03]} Rxf2 {[%emt 0:00:00]} 38. Rxf2 {[%emt 0:00:03]} Bxf7 {[%emt 0:00:01]} 39. Rxf7+ {[%emt 0:00:01]} Kd8 40. Rxc7 {[%emt 0:00:05]} 1-0

[Event "11th LCC Super Blitz 2019"]
[Site "London"]
[Date "2019.12.08"]
[Round "7.12"]
[White "Dhemrait, Jagdeep"]
[Black "Muhunthan, Charukgan"]
[Result "1-0"]
[ECO "B23"]
[WhiteElo "1834"]
[BlackElo "1401"]
[Annotator "NA"]
[PlyCount "48"]
[EventDate "2019.12.08"]
[EventType "swiss"]
[EventCountry "ENG"]
[SourceTitle "playchess.com"]
[Source "ChessBase"]
[SourceQuality "1"]
[TimeControl "180+2"]

1. e4 {[%emt 0:00:00]} c5 {[%emt 0:00:00]} 2. Nc3 {[%emt 0:00:01]} d6 {[%emt 0:00:05]} 3. f4 {[%emt 0:00:02]} Nc6 {[%emt 0:00:00]} 4. Nf3 {[%emt 0:00:00]} g6 {[%emt 0:00:02]} 5. Bb5 {[%emt 0:00:02]} Bd7 {[%emt 0:00:03]} 6. Bxc6 {[%emt 0:00:01]} Bxc6 {[%emt 0:00:01]} 7. O-O {[%emt 0:00:02]} Bg7 {[%emt 0:00:00]} 8. d3 {[%emt 0:00:01]} Nf6 {[%emt 0:00:05]} 9. f5 {[%emt 0:00:06]} O-O {[%emt 0:00:14]} 10. Qe1 Nd7 {[%emt 0:00:10]} 11. Qh4 {[%emt 0:00:05]} e5 {[%emt 0:00:16]} 12. Bg5 {[%emt 0:00:19]} f6 {[%emt 0:00:03]} 13. fxg6 {[%emt 0:00:30]} hxg6 {[%emt 0:00:10]} 14. Bh6 {[%emt 0:00:28]} Qe7 {[%emt 0:00:27]} 15. Bxg7 {[%emt 0:00:09]} Qxg7 {[%emt 0:00:01]} 16. Qg4 {[%emt 0:00:11]} f5 {[%emt 0:00:06]} 17. Qg3 {[%emt 0:00:16]} Nb6 {[%emt 0:00:06]} 18. Nh4 {[%emt 0:00:10]} Rf6 {[%emt 0:01:03]} 19. exf5 {[%emt 0:00:16]} gxf5 {[%emt 0:00:13]} 20. Qxg7+ {[%emt 0:00:11]} Kxg7 {[%emt 0:00:01]} 21. Nxf5+ {[%emt 0:00:03]} Kh8 {[%emt 0:00:02]} 22. Ne4 {[%emt 0:00:10]} Bxe4 {[%emt 0:00:01]} 23. dxe4 {[%emt 0:00:01]} Rg8 {[%emt 0:00:09]} 24. Rf3 {[%emt 0:00:04]} Rg5 {[%emt 0:00:32]} 1-0

[Event "11th LCC Super Blitz 2019"]
[Site "London"]
[Date "2019.12.08"]
[Round "7.14"]
[White "Sandhu, Manvith"]
[Black "Patel, Zain"]
[Result "1-0"]
[ECO "B53"]
[WhiteElo "1673"]
[BlackElo "1253"]
[Annotator "NA"]
[PlyCount "67"]
[EventDate "2019.12.08"]
[EventType "swiss"]
[EventCountry "ENG"]
[SourceTitle "playchess.com"]
[Source "ChessBase"]
[SourceQuality "1"]
[TimeControl "180+2"]

1. e4 {[%emt 0:00:00]} c5 {[%emt 0:00:00]} 2. Nf3 {[%emt 0:00:01]} d6 {[%emt 0:00:00]} 3. d4 {[%emt 0:00:04]} cxd4 {[%emt 0:00:01]} 4. Qxd4 {[%emt 0:00:01]} Nf6 {[%emt 0:00:02]} 5. Nc3 {[%emt 0:00:02]} a6 {[%emt 0:00:01]} 6. Be3 {[%emt 0:00:12]} Nc6 {[%emt 0:00:05]} 7. Qb6 {[%emt 0:00:02]} Qxb6 {[%emt 0:00:03]} 8. Bxb6 {[%emt 0:00:01]} Nb4 {[%emt 0:00:06]} 9. O-O-O {[%emt 0:00:06]} e5 {[%emt 0:00:10]} 10. a3 {[%emt 0:00:19]} Nc6 {[%emt 0:00:07]} 11. Bc4 {[%emt 0:00:22]} Be7 {[%emt 0:00:02]} 12. Rhe1 {[%emt 0:00:30]} O-O {[%emt 0:00:03]} 13. Bc7 {[%emt 0:00:03]} Ne8 {[%emt 0:00:10]} 14. Bb6 {[%emt 0:00:02]} Bg4 {[%emt 0:00:05]} 15. Nd5 {[%emt 0:00:04]} Rc8 {[%emt 0:00:19]} 16. Nxe7+ {[%emt 0:00:15]} Nxe7 {[%emt 0:00:02]} 17. Bb3 {[%emt 0:00:01]} Rc6 {[%emt 0:00:05]} 18. Be3 {[%emt 0:00:09]} Nc7 {[%emt 0:00:03]} 19. Ba4 {[%emt 0:00:06]} b5 {[%emt 0:00:02]} 20. Bb3 {[%emt 0:00:02]} a5 {[%emt 0:00:02]} 21. h3 {[%emt 0:00:21]} Be6 {[%emt 0:00:05]} 22. Bxe6 {[%emt 0:00:13]} fxe6 {[%emt 0:00:09]} 23. Rd3 {[%emt 0:00:05]} b4 {[%emt 0:00:04]} 24. axb4 {[%emt 0:00:05]} axb4 {[%emt 0:00:01]} 25. Red1 {[%emt 0:00:03]} b3 {[%emt 0:00:06]} 26. Rxb3 {[%emt 0:00:03]} d5 {[%emt 0:00:04]} 27. Nxe5 {[%emt 0:00:04]} Rd6 {[%emt 0:00:04]} 28. Bc5 {[%emt 0:00:04]} Ra6 {[%emt 0:00:22]} 29. Bxe7 {[%emt 0:00:02]} Rxf2 {[%emt 0:00:03]} 30. Ra3 {[%emt 0:00:07]} Rb6 {[%emt 0:00:17]} 31. Rc3 {[%emt 0:00:03]} Ra6 {[%emt 0:00:08]} 32. Ba3 {[%emt 0:00:03]} Nb5 {[%emt 0:00:10]} 33. Rc8+ {[%emt 0:00:01]} Rf8 34. Rxf8# {[%emt 0:00:01]} 1-0

[Event "11th LCC Super Blitz 2019"]
[Site "London"]
[Date "2019.12.08"]
[Round "8.1"]
[White "Howell, David Wl"]
[Black "Stoyanov, Viktor"]
[Result "1-0"]
[ECO "A48"]
[WhiteElo "2650"]
[BlackElo "2191"]
[Annotator "ChessBase"]
[PlyCount "59"]
[EventDate "2019.12.08"]
[EventType "swiss"]
[EventCountry "ENG"]
[SourceTitle "playchess.com"]
[Source "ChessBase"]
[SourceQuality "1"]
[TimeControl "180+2"]

1. d4 {[%emt 0:00:00]} Nf6 {[%emt 0:00:00]} 2. Bf4 {[%emt 0:00:02]} g6 {[%emt 0:00:03]} 3. e3 {[%emt 0:00:06]} Bg7 {[%emt 0:00:02]} 4. Nd2 {[%emt 0:00:02]} O-O {[%emt 0:00:03]} 5. Ngf3 {[%emt 0:00:03]} d6 {[%emt 0:00:03]} 6. h3 {[%emt 0:00:01]} b6 {[%emt 0:00:02]} 7. a4 {[%emt 0:00:02]} a6 {[%emt 0:00:02]} 8. Bc4 {[%emt 0:00:06]} Bb7 {[%emt 0:00:01]} 9. Qe2 {[%emt 0:00:02]} c5 {[%emt 0:00:03]} 10. c3 {[%emt 0:00:05]} Nbd7 {[%emt 0:00:02]} 11. O-O {[%emt 0:00:02]} d5 {[%emt 0:00:20]} 12. Bd3 {[%emt 0:00:03]} Ne4 {[%emt 0:00:02]} 13. Rfd1 {[%emt 0:00:08]} Rc8 {[%emt 0:00:07]} 14. Bxa6 {[%emt 0:00:04]} Bxa6 {[%emt 0:00:07]} 15. Qxa6 {[%emt 0:00:02]} c4 {[%emt 0:00:10]} 16. Nxe4 {[%emt 0:00:21]} dxe4 {[%emt 0:00:01]} 17. Nd2 {[%emt 0:00:01]} Ra8 {[%emt 0:00:12]} 18. Qxc4 {[%emt 0:00:03]} e5 {[%emt 0:00:01]} 19. dxe5 {[%emt 0:00:03]} Nxe5 {[%emt 0:00:10]} 20. Bxe5 {[%emt 0:00:04]} Bxe5 {[%emt 0:00:01]} 21. Qxe4 {[%emt 0:00:02]} Qc7 {[%emt 0:00:14]} 22. Nf3 {[%emt 0:00:05]} Bg7 {[%emt 0:00:06]} 23. Rd5 {[%emt 0:00:08]} Rfe8 {[%emt 0:00:18]} 24. Qd3 {[%emt 0:00:01]} Qc6 {[%emt 0:00:04]} 25. Qb5 {[%emt 0:00:01]} Qf6 {[%emt 0:00:06]} 26. Rad1 {[%emt 0:00:09]} h6 {[%emt 0:00:09]} 27. Rd6 {[%emt 0:00:04]} Qe7 {[%emt 0:00:08]} 28. Rxb6 {[%emt 0:00:06]} Rad8 {[%emt 0:00:03]} 29. Rxd8 {[%emt 0:00:08]} Rxd8 {[%emt 0:00:01]} 30. Rb8 {[%emt 0:00:01]} 1-0

[Event "11th LCC Super Blitz 2019"]
[Site "London"]
[Date "2019.12.08"]
[Round "8.2"]
[White "Pert, Nicholas"]
[Black "Van Zyl-Rudd, Jack"]
[Result "1-0"]
[ECO "D41"]
[WhiteElo "2560"]
[BlackElo "2290"]
[Annotator "ChessBase"]
[PlyCount "133"]
[EventDate "2019.12.08"]
[EventType "swiss"]
[EventCountry "ENG"]
[SourceTitle "playchess.com"]
[Source "ChessBase"]
[SourceQuality "1"]
[TimeControl "180+2"]

1. d4 {[%emt 0:00:00]} d5 {[%emt 0:00:00]} 2. c4 {[%emt 0:00:02]} e6 {[%emt 0:00:02]} 3. Nf3 {[%emt 0:00:02]} Nf6 {[%emt 0:00:02]} 4. Nc3 {[%emt 0:00:02]} c5 {[%emt 0:00:02]} 5. cxd5 {[%emt 0:00:02]} Nxd5 {[%emt 0:00:02]} 6. e4 {[%emt 0:00:02]} Nxc3 7. bxc3 {[%emt 0:00:02]} cxd4 {[%emt 0:00:04]} 8. cxd4 {[%emt 0:00:02]} Bb4+ {[%emt 0:00:02]} 9. Bd2 {[%emt 0:00:02]} Bxd2+ {[%emt 0:00:02]} 10. Qxd2 {[%emt 0:00:02]} O-O {[%emt 0:00:02]} 11. Bc4 {[%emt 0:00:02]} Nd7 {[%emt 0:00:02]} 12. O-O {[%emt 0:00:02]} b6 {[%emt 0:00:03]} 13. Rfe1 {[%emt 0:00:03]} Bb7 {[%emt 0:00:01]} 14. Rad1 {[%emt 0:00:04]} Rc8 {[%emt 0:00:01]} 15. Bb3 {[%emt 0:00:01]} Re8 {[%emt 0:00:01]} 16. h3 {[%emt 0:00:03]} Nf6 {[%emt 0:00:03]} 17. Qf4 {[%emt 0:00:16]} Nh5 {[%emt 0:00:01]} 18. Qh2 {[%emt 0:00:09]} h6 {[%emt 0:00:02]} 19. Ne5 {[%emt 0:00:09]} b5 {[%emt 0:01:01]} 20. d5 {[%emt 0:00:20]} exd5 {[%emt 0:00:03]} 21. exd5 {[%emt 0:00:01]} Qd6 {[%emt 0:00:09]} 22. Ng4 {[%emt 0:00:16]} Qxh2+ 23. Kxh2 {[%emt 0:00:01]} Rxe1 {[%emt 0:00:34]} 24. Rxe1 {[%emt 0:00:01]} Rd8 {[%emt 0:00:01]} 25. Rd1 {[%emt 0:00:16]} Rd6 {[%emt 0:00:25]} 26. Ne3 {[%emt 0:00:02]} g6 {[%emt 0:00:01]} 27. a4 {[%emt 0:00:02]} bxa4 {[%emt 0:00:04]} 28. Bxa4 {[%emt 0:00:01]} Nf6 {[%emt 0:00:01]} 29. Bb3 {[%emt 0:00:04]} a5 {[%emt 0:00:03]} 30. Ra1 {[%emt 0:00:03]} Ra6 {[%emt 0:00:24]} 31. Bc4 {[%emt 0:00:07]} Ra7 {[%emt 0:00:06]} 32. d6 {[%emt 0:00:06]} Bc6 {[%emt 0:00:03]} 33. Rb1 {[%emt 0:00:10]} Bd7 {[%emt 0:00:17]} 34. Nc2 {[%emt 0:00:34]} a4 {[%emt 0:00:03]} 35. Na3 {[%emt 0:00:01]} Ne4 {[%emt 0:00:04]} 36. Rb6 {[%emt 0:00:01]} Kg7 {[%emt 0:00:06]} 37. f3 {[%emt 0:00:12]} Nc5 {[%emt 0:00:01]} 38. Kg3 {[%emt 0:00:07]} Kf6 {[%emt 0:00:01]} 39. Kf4 {[%emt 0:00:01]} g5+ {[%emt 0:00:01]} 40. Ke3 {[%emt 0:00:01]} Ke5 {[%emt 0:00:01]} 41. g3 {[%emt 0:00:12]} Be6 {[%emt 0:00:12]} 42. f4+ {[%emt 0:00:00]} gxf4+ {[%emt 0:00:01]} 43. gxf4+ {[%emt 0:00:00]} Kf5 {[%emt 0:00:01]} 44. Be2 {[%emt 0:00:00]} Rd7 {[%emt 0:00:05]} 45. Bb5 {[%emt 0:00:05]} Ra7 {[%emt 0:00:02]} 46. Rc6 {[%emt 0:00:03]} Nd7 {[%emt 0:00:04]} 47. Rc7 {[%emt 0:00:02]} Rxc7 {[%emt 0:00:01]} 48. dxc7 {[%emt 0:00:01]} Nb6 {[%emt 0:00:01]} 49. Bd3+ {[%emt 0:00:08]} Kf6 {[%emt 0:00:01]} 50. Kd4 {[%emt 0:00:01]} Ke7 {[%emt 0:00:01]} 51. Kc5 {[%emt 0:00:01]} Nc8 {[%emt 0:00:04]} 52. Bb5 {[%emt 0:00:02]} Nd6 {[%emt 0:00:02]} 53. Bxa4 {[%emt 0:00:01]} Ne4+ {[%emt 0:00:02]} 54. Kb6 {[%emt 0:00:01]} Nd6 {[%emt 0:00:01]} 55. Nb5 {[%emt 0:00:02]} Nc8+ {[%emt 0:00:04]} 56. Kb7 {[%emt 0:00:05]} Bxh3 {[%emt 0:00:03]} 57. Na7 {[%emt 0:00:09]} Nxa7 {[%emt 0:00:02]} 58. Kxa7 {[%emt 0:00:02]} Bc8 {[%emt 0:00:02]} 59. Kb8 {[%emt 0:00:01]} Be6 {[%emt 0:00:03]} 60. Bb3 {[%emt 0:00:06]} Bd7 {[%emt 0:00:04]} 61. Ba4 {[%emt 0:00:06]} Be6 {[%emt 0:00:02]} 62. c8=Q {[%emt 0:00:05]} Bxc8 {[%emt 0:00:00]} 63. Kxc8 {[%emt 0:00:01]} h5 {[%emt 0:00:00]} 64. Kc7 {[%emt 0:00:01]} h4 {[%emt 0:00:01]} 65. Bd7 {[%emt 0:00:01]} Kf6 {[%emt 0:00:04]} 66. Kd6 {[%emt 0:00:01]} Kg6 {[%emt 0:00:03]} 67. Bh3 {[%emt 0:00:02]} 1-0

[Event "11th LCC Super Blitz 2019"]
[Site "London"]
[Date "2019.12.08"]
[Round "8.2"]
[White "Beinoras, Mindaugas"]
[Black "Grover, Sahaj"]
[Result "0-1"]
[ECO "A45"]
[WhiteElo "2401"]
[BlackElo "2486"]
[Annotator "ChessBase"]
[PlyCount "50"]
[EventDate "2019.12.08"]
[EventType "swiss"]
[EventCountry "ENG"]
[SourceTitle "playchess.com"]
[Source "ChessBase"]
[SourceQuality "1"]
[TimeControl "180+2"]

1. d4 {[%emt 0:00:00]} Nf6 {[%emt 0:00:00]} 2. Bg5 {[%emt 0:00:00]} Ne4 {[%emt 0:00:03]} 3. Bh4 {[%emt 0:00:01]} d5 {[%emt 0:00:03]} 4. f3 {[%emt 0:00:02]} Nf6 {[%emt 0:00:02]} 5. Nc3 {[%emt 0:00:09]} c5 {[%emt 0:00:06]} 6. e4 {[%emt 0:00:17]} dxe4 {[%emt 0:00:01]} 7. d5 {[%emt 0:00:00]} Qb6 {[%emt 0:00:29]} 8. Bb5+ {[%emt 0:00:16]} Bd7 {[%emt 0:00:08]} 9. a4 {[%emt 0:00:03]} a6 {[%emt 0:00:26]} 10. a5 {[%emt 0:00:01]} Qc7 {[%emt 0:00:01]} 11. Bc4 {[%emt 0:00:18]} e6 {[%emt 0:00:32]} 12. dxe6 {[%emt 0:00:10]} Bxe6 {[%emt 0:00:03]} 13. Bxe6 {[%emt 0:00:06]} fxe6 {[%emt 0:00:01]} 14. fxe4 {[%emt 0:00:03]} Nbd7 {[%emt 0:00:09]} 15. Nf3 {[%emt 0:00:06]} O-O-O {[%emt 0:00:09]} 16. Qe2 {[%emt 0:00:10]} Bd6 {[%emt 0:00:17]} 17. Ng5 {[%emt 0:00:15]} Nf8 {[%emt 0:00:14]} 18. Nf3 {[%emt 0:00:11]} Ng6 {[%emt 0:00:02]} 19. Bg5 {[%emt 0:00:08]} h6 {[%emt 0:00:07]} 20. Be3 {[%emt 0:00:25]} Ne5 {[%emt 0:00:10]} 21. Nd2 {[%emt 0:00:25]} Nfg4 {[%emt 0:00:03]} 22. Bf4 {[%emt 0:00:05]} Rhf8 {[%emt 0:00:06]} 23. Bxe5 {[%emt 0:00:03]} Nxe5 {[%emt 0:00:03]} 24. Nc4 {[%emt 0:00:13]} Nxc4 {[%emt 0:00:01]} 25. Qxc4 {[%emt 0:00:01]} Bg3+ {[%emt 0:00:01]} 0-1

[Event "11th LCC Super Blitz 2019"]
[Site "London"]
[Date "2019.12.08"]
[Round "8.2"]
[White "Stepanyan, Henrik"]
[Black "Bukojemski, Adam"]
[Result "1-0"]
[ECO "D90"]
[WhiteElo "2193"]
[BlackElo "2219"]
[Annotator "NA"]
[PlyCount "97"]
[EventDate "2019.12.08"]
[EventType "swiss"]
[EventCountry "ENG"]
[SourceTitle "playchess.com"]
[Source "ChessBase"]
[SourceQuality "1"]
[TimeControl "180+2"]

1. d4 {[%emt 0:00:00]} Nf6 {[%emt 0:00:01]} 2. c4 {[%emt 0:00:02]} g6 {[%emt 0:00:01]} 3. Nc3 d5 4. cxd5 {[%emt 0:00:02]} Nxd5 {[%emt 0:00:00]} 5. Bd2 Bg7 {[%emt 0:00:03]} 6. e4 {[%emt 0:00:00]} Nb6 {[%emt 0:00:02]} 7. Be3 {[%emt 0:00:05]} O-O {[%emt 0:00:02]} 8. Be2 {[%emt 0:00:11]} Nc6 {[%emt 0:00:07]} 9. Nf3 {[%emt 0:00:02]} Bg4 {[%emt 0:00:02]} 10. d5 {[%emt 0:00:01]} Bxf3 {[%emt 0:00:07]} 11. gxf3 {[%emt 0:00:19]} Ne5 {[%emt 0:00:04]} 12. Bd4 {[%emt 0:00:24]} c6 {[%emt 0:00:24]} 13. f4 {[%emt 0:00:08]} Ned7 {[%emt 0:00:01]} 14. Bxg7 {[%emt 0:00:02]} Kxg7 {[%emt 0:00:00]} 15. dxc6 {[%emt 0:00:02]} bxc6 16. Qd4+ {[%emt 0:00:07]} Nf6 {[%emt 0:00:02]} 17. O-O-O {[%emt 0:00:05]} Qc7 {[%emt 0:00:12]} 18. e5 Nfd5 {[%emt 0:00:01]} 19. Nxd5 {[%emt 0:00:01]} Nxd5 {[%emt 0:00:09]} 20. Kb1 {[%emt 0:00:07]} Qb6 {[%emt 0:00:05]} 21. h4 {[%emt 0:00:11]} Rab8 {[%emt 0:00:12]} 22. Qxb6 {[%emt 0:00:17]} Rxb6 {[%emt 0:00:03]} 23. Rd2 {[%emt 0:00:13]} Nxf4 {[%emt 0:00:02]} 24. Bf3 {[%emt 0:00:04]} h5 {[%emt 0:00:20]} 25. Rc1 {[%emt 0:00:06]} Rc8 {[%emt 0:00:03]} 26. Rd7 {[%emt 0:00:17]} e6 27. Rd6 {[%emt 0:00:17]} c5 {[%emt 0:00:05]} 28. Rd7 {[%emt 0:00:05]} c4 {[%emt 0:00:04]} 29. Rd4 {[%emt 0:00:06]} c3 {[%emt 0:00:02]} 30. Rxf4 {[%emt 0:00:10]} Rxb2+ {[%emt 0:00:03]} 31. Ka1 {[%emt 0:00:01]} Rxf2 {[%emt 0:00:02]} 32. Bb7 {[%emt 0:00:16]} Rxf4 {[%emt 0:00:10]} 33. Bxc8 Rc4 {[%emt 0:00:21]} 34. Ba6 {[%emt 0:00:04]} Rc6 35. Bd3 {[%emt 0:00:04]} f5 {[%emt 0:00:13]} 36. exf6+ {[%emt 0:00:02]} Kxf6 37. Kb1 g5 {[%emt 0:00:04]} 38. Rf1+ {[%emt 0:00:01]} Ke5 {[%emt 0:00:04]} 39. hxg5 {[%emt 0:00:02]} Kd4 {[%emt 0:00:00]} 40. Kc2 Rb6 {[%emt 0:00:01]} 41. Rf4+ {[%emt 0:00:02]} Ke3 42. Re4+ {[%emt 0:00:01]} Kf3 {[%emt 0:00:01]} 43. Rh4 {[%emt 0:00:06]} e5 {[%emt 0:00:07]} 44. g6 {[%emt 0:00:12]} Rb8 {[%emt 0:00:08]} 45. Rxh5 {[%emt 0:00:04]} e4 46. Rf5+ {[%emt 0:00:00]} Ke3 {[%emt 0:00:07]} 47. Re5 {[%emt 0:00:01]} Rb2+ {[%emt 0:00:08]} 48. Kxc3 {[%emt 0:00:01]} Rxa2 {[%emt 0:00:01]} 49. Rxe4+ {[%emt 0:00:06]} 1-0

[Event "11th LCC Super Blitz 2019"]
[Site "London"]
[Date "2019.12.08"]
[Round "8.3"]
[White "Aravindh, Chithambaram Vr"]
[Black "Roberson, Peter T"]
[Result "1-0"]
[ECO "A62"]
[WhiteElo "2560"]
[BlackElo "2282"]
[Annotator "ChessBase"]
[PlyCount "63"]
[EventDate "2019.12.08"]
[EventType "swiss"]
[EventCountry "ENG"]
[SourceTitle "playchess.com"]
[Source "ChessBase"]
[SourceQuality "1"]
[TimeControl "180+2"]

1. d4 {[%emt 0:00:00]} Nf6 {[%emt 0:00:00]} 2. c4 {[%emt 0:00:01]} e6 {[%emt 0:00:00]} 3. Nf3 {[%emt 0:00:01]} c5 {[%emt 0:00:00]} 4. d5 {[%emt 0:00:03]} d6 {[%emt 0:00:01]} 5. Nc3 {[%emt 0:00:01]} exd5 {[%emt 0:00:01]} 6. cxd5 {[%emt 0:00:02]} g6 {[%emt 0:00:01]} 7. g3 {[%emt 0:00:01]} Bg7 {[%emt 0:00:00]} 8. Bg2 {[%emt 0:00:02]} O-O {[%emt 0:00:02]} 9. O-O {[%emt 0:00:01]} Nbd7 {[%emt 0:00:01]} 10. Nd2 {[%emt 0:00:03]} Ng4 {[%emt 0:00:02]} 11. Nc4 {[%emt 0:00:02]} Nde5 {[%emt 0:00:05]} 12. Nxe5 {[%emt 0:00:02]} Nxe5 {[%emt 0:00:01]} 13. Bf4 {[%emt 0:00:10]} a6 {[%emt 0:00:09]} 14. a4 {[%emt 0:00:01]} Rb8 15. Qc1 {[%emt 0:00:24]} b5 {[%emt 0:00:08]} 16. axb5 {[%emt 0:00:02]} axb5 {[%emt 0:00:01]} 17. Bh6 {[%emt 0:00:02]} b4 {[%emt 0:00:18]} 18. Nd1 {[%emt 0:00:18]} Bd7 {[%emt 0:00:15]} 19. Bxg7 {[%emt 0:00:00]} Kxg7 {[%emt 0:00:01]} 20. f4 {[%emt 0:00:00]} Ng4 {[%emt 0:00:02]} 21. h3 {[%emt 0:00:01]} Nf6 {[%emt 0:00:03]} 22. e4 {[%emt 0:00:01]} Re8 {[%emt 0:00:18]} 23. Nf2 {[%emt 0:00:02]} Bb5 {[%emt 0:00:08]} 24. Re1 {[%emt 0:00:02]} c4 {[%emt 0:00:06]} 25. Qd2 {[%emt 0:00:10]} Nh5 {[%emt 0:00:50]} 26. Qxb4 {[%emt 0:00:18]} Qf6 {[%emt 0:00:01]} 27. Qd2 {[%emt 0:00:01]} Nxg3 {[%emt 0:00:12]} 28. Ng4 {[%emt 0:00:11]} Qh4 29. Qd4+ {[%emt 0:00:07]} f6 {[%emt 0:00:15]} 30. Ra7+ {[%emt 0:00:00]} Kh8 {[%emt 0:00:18]} 31. Qxf6+ {[%emt 0:00:04]} Qxf6 {[%emt 0:00:02]} 32. Nxf6 {[%emt 0:00:02]} 1-0